fUST/lending_fUST_20240721
["ID","MTS","AMOUNT","RATE_DAILY","PERIOD"]
[332793177,1721527853400,-789.11,0.00013972,2]
[332793178,1721527853409,-500.0,0.00013972,2]
[332793179,1721527853419,-829.8,0.00013972,2]
[332793180,1721527853429,-500.0,0.00013972,2]
[332793181,1721527853438,-501.06492413,0.00013972,2]
[332793182,1721527853447,-642.6076924,0.00013972,2]
[332793183,1721527853456,-500.0,0.00013972,2]
[332793184,1721527853465,-501.82747193,0.00013972,2]
[332793185,1721527853475,-500.0,0.00013972,2]
[332793186,1721527853484,-500.0,0.00013972,2]
[332793187,1721527853493,-500.0,0.00013972,2]
[332793188,1721527853502,-500.0,0.00013972,2]
[332793189,1721527853511,-556.33693798,0.00013972,2]
[332793190,1721527853521,-502.88634274,0.00013972,2]
[332793191,1721527853531,-500.0,0.00013972,2]
[332793192,1721527853540,-500.0,0.00013972,2]
[332793193,1721527853549,-500.0,0.00013972,2]
[332793194,1721527853560,-522.68,0.00013972,2]
[332793195,1721527853569,-666.25,0.00013972,2]
[332793196,1721527853578,-502.64843885,0.00013972,2]
[332793197,1721527853588,-500.0,0.00013972,2]
[332793198,1721527853597,-500.0,0.00013972,2]
[332793199,1721527853606,-500.0,0.00013972,2]
[332793200,1721527853615,-1105.58,0.00013972,2]
[332793201,1721527853625,-1752.79,0.00013972,2]
[332793202,1721527853638,-500.0,0.00013972,2]
[332793203,1721527853647,-1192.29,0.00013972,2]
[332793204,1721527853656,-516.91745444,0.00013972,2]
[332793205,1721527853666,-500.0,0.00013972,2]
[332793206,1721527853676,-500.0,0.00013972,2]
[332793207,1721527853685,-563.71,0.00013972,2]
[332793208,1721527853695,-500.0,0.00013972,2]
[332793209,1721527853705,-613.33,0.00013972,2]
[332793210,1721527853715,-500.0,0.00013972,2]
[332793211,1721527853724,-500.0,0.00013972,2]
[332793212,1721527853733,-502.94533925,0.00013972,2]
[332793213,1721527853743,-500.0,0.00013972,2]
[332793214,1721527853753,-500.0,0.00013972,2]
[332793215,1721527853762,-1811.81,0.00013972,2]
[332793216,1721527853771,-500.0,0.00013972,2]
[332793217,1721527853780,-584.00971632,0.00013972,2]
[332793218,1721527853789,-529.5921059,0.00013972,2]
[332793219,1721527853799,-500.0,0.00013972,2]
[332793220,1721527853810,-500.0,0.00013972,2]
[332793221,1721527853820,-500.0,0.00013972,2]
[332793222,1721527853830,-4176.59,0.00013972,2]
[332793223,1721527853840,-624.71,0.00013972,2]
[332793224,1721527853849,-577.51,0.00013972,2]
[332793225,1721527853859,-532.16,0.00013972,2]
[332793226,1721527853869,-500.0,0.00013972,2]
[332793227,1721527853878,-789.05,0.00013972,2]
[332793228,1721527853888,-500.0,0.00013972,2]
[332793229,1721527853898,-500.0,0.00013972,2]
[332793230,1721527853907,-500.0,0.00013972,2]
[332793231,1721527853918,-529.93265819,0.00013972,2]
[332793232,1721527853928,-1484.97,0.00013972,2]
[332793233,1721527853938,-500.0,0.00013972,2]
[332793234,1721527853948,-500.0,0.00013972,2]
[332793235,1721527853958,-500.0,0.00013972,2]
[332793236,1721527853967,-500.0,0.00013972,2]
[332793237,1721527853977,-500.0,0.00013972,2]
[332793238,1721527853987,-500.0,0.00013972,2]
[332793239,1721527853998,-500.0,0.00013972,2]
[332793240,1721527854009,-500.0,0.00013972,2]
[332793241,1721527854019,-546.87,0.00013972,2]
[332793242,1721527854029,-500.0,0.00013972,2]
[332793243,1721527854039,-500.0,0.00013972,2]
[332793244,1721527854049,-500.0,0.00013972,2]
[332793245,1721527854059,-1242.79,0.00013972,2]
[332793246,1721527854071,-500.0,0.00013972,2]
[332793247,1721527854081,-584.41285074,0.00013972,2]
[332793248,1721527854090,-500.0,0.00013972,2]
[332793249,1721527854099,-502.14052189,0.00013972,2]
[332793250,1721527854108,-500.0,0.00013972,2]
[332793251,1721527854119,-500.0,0.00013972,2]
[332793252,1721527854128,-500.0,0.00013972,2]
[332793253,1721527854141,-632.95,0.00013972,2]
[332793254,1721527854151,-255.18637851,0.00013972,2]
[332793255,1721527854162,-507.9931766,0.00013972,2]
[332793256,1721527854172,-515.92151334,0.00013972,2]
[332793257,1721527854182,-500.0,0.00013972,2]
[332793258,1721527854192,-500.0,0.00013972,2]
[332793259,1721527854202,-500.0,0.00013972,2]
[332793260,1721527854211,-500.0,0.00013972,2]
[332793261,1721527854221,-500.45775118,0.00013972,2]
[332793262,1721527854231,-500.0,0.00013972,2]
[332793263,1721527854240,-500.0,0.00013972,2]
[332793264,1721527854251,-500.0,0.00013972,2]
[332793265,1721527854260,-500.0,0.00013972,2]
[332793266,1721527854269,-500.0,0.00013972,2]
[332793267,1721527854279,-500.0,0.00013972,2]
[332793268,1721527854288,-508.45390774,0.00013972,2]
[332793269,1721527854298,-489.80891818,0.00013972,2]
[332793270,1721527854307,-500.0,0.00013972,2]
[332793271,1721527854317,-500.0,0.00013972,2]
[332793272,1721527854327,-183.11690958,0.00013972,2]
[332793273,1721527854336,-515.46393471,0.00013972,2]
[332793274,1721527854345,-500.0,0.00013972,2]
[332793275,1721527854354,-500.0,0.00013972,2]
[332793276,1721527854363,-500.0,0.00013972,2]
[332793277,1721527854372,-500.0,0.00013972,2]
[332793278,1721527854382,-500.0,0.00013972,2]
[332793279,1721527854391,-473.26811117,0.00013972,2]
[332793280,1721527854402,-500.0,0.00013972,2]
[332793281,1721527854411,-501.60072764,0.00013972,2]
[332793282,1721527854421,-500.0,0.00013972,2]
[332793283,1721527854431,-1963.1,0.00013972,2]
[332793284,1721527854440,-505.68212451,0.00013972,2]
[332793285,1721527854450,-500.0,0.00013972,2]
[332793286,1721527854461,-500.0,0.00013972,2]
[332793287,1721527854470,-1896.71,0.00013972,2]
[332793288,1721527854479,-500.0,0.00013972,2]
[332793289,1721527854488,-500.0,0.00013972,2]
[332793290,1721527854499,-500.0,0.00013972,2]
[332793291,1721527854508,-843.23,0.00013972,2]
[332793292,1721527854518,-500.0,0.00013972,2]
[332793293,1721527854529,-850.04,0.00013972,2]
[332793294,1721527854539,-500.0,0.00013972,2]
[332793295,1721527854549,-500.0,0.00013972,2]
[332793296,1721527854558,-501.65098041,0.00013972,2]
[332793297,1721527854567,-500.0,0.00013972,2]
[332793298,1721527854579,-500.0,0.00013972,2]
[332793299,1721527854589,-500.0,0.00013972,2]
[332793300,1721527854600,-2622.39,0.00013972,2]
[332793301,1721527854612,-500.0,0.00013972,2]
[332793302,1721527854623,-522.00067565,0.00013972,2]
[332793303,1721527854636,-500.0,0.00013972,2]
[332793304,1721527854649,-500.0,0.00013972,2]
[332793305,1721527854660,-500.0,0.00013972,2]
[332793306,1721527854670,-1247.74,0.00013972,2]
[332793307,1721527854683,-500.0,0.00013972,2]
[332793308,1721527854694,-493.3454994,0.00013972,2]
[332793309,1721527854705,-1693.12,0.00013972,2]
[332793310,1721527854717,-502.60085733,0.00013972,2]
[332793311,1721527854727,-500.0,0.00013972,2]
[332793312,1721527854737,-500.0,0.00013972,2]
[332793313,1721527854746,-263.37599785,0.00013972,2]
[332793314,1721527854757,-502.65518902,0.00013972,2]
[332793315,1721527854767,-1625.34,0.00013972,2]
[332793316,1721527854778,-500.0,0.00013972,2]
[332793317,1721527854790,-1551.28,0.00013972,2]
[332793318,1721527854800,-778.74,0.00013972,2]
[332793319,1721527854810,-500.0,0.00013972,2]
[332793320,1721527854820,-553.23,0.00013972,2]
[332793321,1721527854830,-500.0,0.00013972,2]
[332793322,1721527854840,-500.0,0.00013972,2]
[332793323,1721527854851,-668.39,0.00013972,2]
[332793324,1721527854861,-500.0,0.00013972,2]
[332793325,1721527854872,-500.0,0.00013972,2]
[332793326,1721527854883,-497.36550988,0.00013972,2]
[332793327,1721527854893,-500.0,0.00013972,2]
[332793328,1721527854903,-837.08,0.00013972,2]
[332793329,1721527854913,-551.8785689,0.00013972,2]
[332793330,1721527854924,-500.0,0.00013972,2]
[332793331,1721527854935,-594.5,0.00013972,2]
[332793332,1721527854945,-500.0,0.00013972,2]
[332793333,1721527854955,-503.08422346,0.00013972,2]
[332793334,1721527854965,-177.88762084,0.00013972,2]
[332793335,1721527854978,-515.75265075,0.00013972,2]
[332793336,1721527854987,-500.0,0.00013972,2]
[332793337,1721527854999,-504.5747422,0.00013972,2]
[332793338,1721527855008,-542.96,0.00013972,2]
[332793339,1721527855019,-1712.64,0.00013972,2]
[332793340,1721527855029,-500.0,0.00013972,2]
[332793341,1721527855039,-500.0,0.00013972,2]
[332793342,1721527855048,-1416.48,0.00013972,2]
[332793343,1721527855058,-627.86,0.00013972,2]
[332793344,1721527855067,-500.0,0.00013972,2]
[332793345,1721527855077,-3309.92,0.00013972,2]
[332793346,1721527855087,-504.01988938,0.00013972,2]
[332793347,1721527855097,-1811.1,0.00013972,2]
[332793348,1721527855106,-1835.35,0.00013972,2]
[332793349,1721527855115,-500.0,0.00013972,2]
[332793350,1721527855286,-554.52,0.00013972,2]
[332793351,1721527855298,-500.0,0.00013972,2]
[332793352,1721527855308,-500.0,0.00013972,2]
[332793353,1721527855321,-1055.37,0.00013972,2]
[332793354,1721527855331,-1193.25,0.00013972,2]
[332793355,1721527855342,-2287.36,0.00013972,2]
[332793356,1721527855352,-500.0,0.00013972,2]
[332793357,1721527855362,-510.91,0.00013972,2]
[332793358,1721527855372,-500.0,0.00013972,2]
[332793359,1721527855381,-504.84,0.00013972,2]
[332793360,1721527855390,-500.0,0.00013972,2]
[332793361,1721527855400,-672.49,0.00013972,2]
[332793362,1721527855409,-1723.47,0.00013972,2]
[332793363,1721527855418,-4272.47,0.00013972,2]
[332793364,1721527855428,-504.0428453,0.00013972,2]
[332793365,1721527855437,-742.69,0.00013972,2]
[332793366,1721527855447,-644.88,0.00013972,2]
[332793367,1721527855456,-500.0,0.00013972,2]
[332793368,1721527855465,-523.53,0.00013972,2]
[332793369,1721527855476,-1165.46,0.00013972,2]
[332793370,1721527855485,-562.9958626,0.00013972,2]
[332793371,1721527855495,-1099.63,0.00013972,2]
[332793372,1721527855505,-599.05,0.00013972,2]
[332793373,1721527855514,-518.21448443,0.00013972,2]
[332793374,1721527855523,-500.0,0.00013972,2]
[332793375,1721527855533,-572.16,0.00013972,2]
[332793376,1721527855542,-501.1040007,0.00013972,2]
[332793377,1721527855551,-509.82421149,0.00013972,2]
[332793378,1721527855561,-2017.41,0.00013972,2]
[332793379,1721527855570,-500.0,0.00013972,2]
[332793380,1721527855579,-548.99,0.00013972,2]
[332793381,1721527855588,-2111.08,0.00013972,2]
[332793382,1721527855598,-609.05,0.00013972,2]
[332793383,1721527855607,-657.8,0.00013972,2]
[332793384,1721527855616,-502.50264103,0.00013972,2]
[332793385,1721527855629,-500.0,0.00013972,2]
[332793386,1721527855641,-500.0,0.00013972,2]
[332793387,1721527855651,-648.05,0.00013972,2]
[332793388,1721527855661,-503.36633025,0.00013972,2]
[332793389,1721527855672,-2257.74,0.00013972,2]
[332793390,1721527855682,-500.0,0.00013972,2]
[332793391,1721527855691,-534.65,0.00013972,2]
[332793392,1721527855701,-501.11764964,0.00013972,2]
[332793393,1721527855714,-500.0,0.00013972,2]
[332793394,1721527855724,-500.0,0.00013972,2]
[332793395,1721527855735,-3258.25,0.00013972,2]
[332793396,1721527855745,-500.0,0.00013972,2]
[332793397,1721527855754,-502.52639465,0.00013972,2]
[332793398,1721527855764,-502.82568282,0.00013972,2]
[332793399,1721527855773,-794.69,0.00013972,2]
[332793400,1721527855783,-500.0,0.00013972,2]
[332793401,1721527855792,-500.0,0.00013972,2]
[332793402,1721527855802,-500.0,0.00013972,2]
[332793403,1721527855811,-502.93136755,0.00013972,2]
[332793404,1721527855820,-500.0,0.00013972,2]
[332793405,1721527855830,-500.0,0.00013972,2]
[332793406,1721527855839,-500.0,0.00013972,2]
[332793407,1721527855849,-500.0,0.00013972,2]
[332793408,1721527855858,-18040.68,0.00013972,2]
[332793409,1721527855867,-220.89086083,0.00013972,2]
[332793410,1721527855876,-500.0,0.00013972,2]
[332793411,1721527855885,-500.0,0.00013972,2]
[332793412,1721527855895,-1704.77,0.00013972,2]
[332793413,1721527855904,-781.14,0.00013972,2]
[332793414,1721527855914,-1532.59,0.00013972,2]
[332793415,1721527855925,-500.0,0.00013972,2]
[332793416,1721527855934,-1071.5,0.00013972,2]
[332793417,1721527855943,-510.85,0.00013972,2]
[332793418,1721527855952,-8627.35,0.00013972,2]
[332793419,1721527855963,-1588.1,0.00013972,2]
[332793420,1721527855974,-500.0,0.00013972,2]
[332793421,1721527855984,-501.67011341,0.00013972,2]
[332793422,1721527855996,-616.91,0.00013972,2]
[332793423,1721527856007,-924.888768,0.00013972,2]
[332793424,1721527856021,-924.888768,0.00013972,2]
[332793425,1721527856031,-924.888768,0.00013972,2]
[332793426,1721527856040,-924.888768,0.00013972,2]
[332793427,1721527856050,-924.888768,0.00013972,2]
[332793428,1721527856059,-2599.9,0.00013972,2]
[332793429,1721527856069,-924.888768,0.00013972,2]
[332793430,1721527856078,-924.888768,0.00013972,2]
[332793431,1721527856087,-924.888768,0.00013972,2]
[332793432,1721527856099,-500.0,0.00013972,2]
[332793433,1721527856110,-924.888768,0.00013972,2]
[332793434,1721527856119,-924.88877,0.00013972,2]
[332793435,1721527856131,-698.5,0.00013972,2]
[332793436,1721527856141,-949.92,0.00013972,2]
[332793437,1721527856153,-500.0,0.00013972,2]
[332793438,1721527856164,-2145.02,0.00013972,2]
[332793439,1721527856174,-500.0,0.00013972,2]
[332793440,1721527856185,-3476.62,0.00013972,2]
[332793441,1721527856195,-821.56,0.00013972,2]
[332793442,1721527856207,-500.0,0.00013972,2]
[332793443,1721527856218,-500.0,0.00013972,2]
[332793444,1721527856230,-3141.66,0.00013972,2]
[332793445,1721527856241,-602.72812317,0.00013972,2]
[332793446,1721527856254,-516.58329341,0.00013972,2]
[332793447,1721527856266,-986.07,0.00013972,2]
[332793448,1721527856276,-500.0,0.00013972,2]
[332793449,1721527856287,-602.53,0.00013972,2]
[332793450,1721527856299,-5262.32,0.00013972,2]
[332793451,1721527856310,-3820.82,0.00013972,2]
[332793452,1721527856320,-500.0,0.00013972,2]
[332793453,1721527856331,-610.83125507,0.00013972,2]
[332793454,1721527856341,-667.95,0.00013972,2]
[332793455,1721527856350,-500.0,0.00013972,2]
[332793456,1721527856360,-4979.92,0.00013972,2]
[332793457,1721527856370,-515.0673589,0.00013972,2]
[332793458,1721527856379,-500.0,0.00013972,2]
[332793459,1721527856390,-500.0,0.00013972,2]
[332793460,1721527856400,-1860.76,0.00013972,2]
[332793461,1721527856410,-500.0,0.00013972,2]
[332793462,1721527856419,-500.0,0.00013972,2]
[332793463,1721527856429,-666.21,0.00013972,2]
[332793464,1721527856439,-500.0,0.00013972,2]
[332793465,1721527856450,-884.3,0.00013972,2]
[332793466,1721527856460,-500.0,0.00013972,2]
[332793467,1721527856469,-8206.99,0.00013972,2]
[332793468,1721527856479,-500.0,0.00013972,2]
[332793469,1721527856489,-500.0,0.00013972,2]
[332793470,1721527856499,-500.0,0.00013972,2]
[332793471,1721527856508,-500.0,0.00013972,2]
[332793472,1721527856518,-522.83513328,0.00013972,2]
[332793473,1721527856528,-546.76119631,0.00013972,2]
[332793474,1721527856539,-500.0,0.00013972,2]
[332793475,1721527856549,-830.65,0.00013972,2]
[332793476,1721527856561,-500.0,0.00013972,2]
[332793477,1721527856572,-746.48,0.00013972,2]
[332793478,1721527856582,-500.0,0.00013972,2]
[332793479,1721527856592,-1135.41,0.00013972,2]
[332793480,1721527856603,-500.0,0.00013972,2]
[332793481,1721527856614,-2113.01,0.00013972,2]
[332793482,1721527856624,-5196.09,0.00013972,2]
[332793483,1721527856638,-500.0,0.00013972,2]
[332793484,1721527856647,-500.0,0.00013972,2]
[332793485,1721527856658,-500.0,0.00013972,2]
[332793486,1721527856669,-1080.18,0.00013972,2]
[332793487,1721527856681,-500.0,0.00013972,2]
[332793488,1721527856690,-500.0,0.00013972,2]
[332793489,1721527856699,-500.0,0.00013972,2]
[332793490,1721527856710,-883.2,0.00013972,2]
[332793491,1721527856720,-1103.251346,0.00013972,2]
[332793492,1721527856729,-500.0,0.00013972,2]
[332793493,1721527856738,-1184.46,0.00013972,2]
[332793494,1721527856748,-1103.251346,0.00013972,2]
[332793495,1721527856758,-1103.251346,0.00013972,2]
[332793496,1721527856767,-1103.251346,0.00013972,2]
[332793497,1721527856777,-512.03227785,0.00013972,2]
[332793498,1721527856786,-1103.251346,0.00013972,2]
[332793499,1721527856796,-500.0,0.00013972,2]
[332793500,1721527856805,-500.0,0.00013972,2]
[332793501,1721527856814,-1103.251346,0.00013972,2]
[332793502,1721527856824,-1103.251346,0.00013972,2]
[332793503,1721527856833,-1103.251346,0.00013972,2]
[332793504,1721527856843,-1103.251346,0.00013972,2]
[332793505,1721527856852,-1103.251353,0.00013972,2]
[332793506,1721527856862,-3156.9,0.00013972,2]
[332793507,1721527856871,-2341.93,0.00013972,2]
[332793508,1721527856880,-11946.84,0.00013972,2]
[332793509,1721527856890,-500.0,0.00013972,2]
[332793510,1721527856899,-500.0,0.00013972,2]
[332793511,1721527856909,-541.86,0.00013972,2]
[332793512,1721527856919,-1419.15,0.00013972,2]
[332793513,1721527856929,-500.0,0.00013972,2]
[332793514,1721527856939,-500.0,0.00013972,2]
[332793515,1721527856948,-500.0,0.00013972,2]
[332793516,1721527856957,-1338.9,0.00013972,2]
[332793517,1721527856967,-500.0,0.00013972,2]
[332793518,1721527856976,-500.0,0.00013972,2]
[332793519,1721527856988,-2699.77,0.00013972,2]
[332793520,1721527856999,-2719.84,0.00013972,2]
[332793521,1721527857009,-500.0,0.00013972,2]
[332793522,1721527857020,-500.0,0.00013972,2]
[332793523,1721527857033,-2383.06,0.00013972,2]
[332793524,1721527857045,-551.73,0.00013972,2]
[332793525,1721527857054,-500.0,0.00013972,2]
[332793526,1721527857063,-500.0,0.00013972,2]
[332793527,1721527857073,-500.0,0.00013972,2]
[332793528,1721527857082,-2075.67,0.00013972,2]
[332793529,1721527857092,-502.22706125,0.00013972,2]
[332793530,1721527857101,-500.0,0.00013972,2]
[332793531,1721527857110,-1464.65,0.00013972,2]
[332793532,1721527857119,-500.0,0.00013972,2]
[332793533,1721527857129,-500.0,0.00013972,2]
[332793534,1721527857138,-1055.64,0.00013972,2]
[332793535,1721527857148,-501.15311534,0.00013972,2]
[332793536,1721527857158,-500.0,0.00013972,2]
[332793537,1721527857167,-500.0,0.00013972,2]
[332793538,1721527857176,-500.0,0.00013972,2]
[332793539,1721527857185,-500.0,0.00013972,2]
[332793540,1721527857194,-500.0,0.00013972,2]
[332793541,1721527857204,-1099.23,0.00013972,2]
[332793542,1721527857213,-500.0,0.00013972,2]
[332793543,1721527857222,-500.0,0.00013972,2]
[332793544,1721527857231,-500.0,0.00013972,2]
[332793545,1721527857241,-500.0,0.00013972,2]
[332793546,1721527857252,-500.0,0.00013972,2]
[332793547,1721527857261,-500.0,0.00013972,2]
[332793548,1721527857271,-1241.23,0.00013972,2]
[332793549,1721527857281,-500.0,0.00013972,2]
[332793550,1721527857291,-1666.58,0.00013972,2]
[332793551,1721527857303,-500.0,0.00013972,2]
[332793552,1721527857312,-500.0,0.00013972,2]
[332793553,1721527857322,-253.894871,0.00013972,2]
[332793554,1721527857332,-500.0,0.00013972,2]
[332793555,1721527857341,-253.894871,0.00013972,2]
[332793556,1721527857350,-253.894871,0.00013972,2]
[332793557,1721527857360,-253.894871,0.00013972,2]
[332793558,1721527857370,-2364.17,0.00013972,2]
[332793559,1721527857381,-253.894871,0.00013972,2]
[332793560,1721527857393,-542.9796627,0.00013972,2]
[332793561,1721527857404,-26127.94,0.00013972,2]
[332793562,1721527857414,-1827.98,0.00013972,2]
[332793563,1721527857424,-253.894871,0.00013972,2]
[332793564,1721527857435,-1222.51,0.00013972,2]
[332793565,1721527857444,-500.0,0.00013972,2]
[332793566,1721527857456,-253.894871,0.00013972,2]
[332793567,1721527857466,-253.894871,0.00013972,2]
[332793568,1721527857476,-500.0,0.00013972,2]
[332793569,1721527857485,-253.894871,0.00013972,2]
[332793570,1721527857496,-230.00817011,0.00013972,2]
[332793642,1721529031964,-443.89,0.00010959,2]
[332793644,1721529031974,-300.0,0.00012471,2]
[332793646,1721529031983,-24900.0,0.00012472,2]
[332793648,1721529031994,-176.605195,0.000125,2]
[332793650,1721529032003,-176.605195,0.00013152,2]
[332793652,1721529032015,-620.12227955,0.00013461,2]
[332793654,1721529032024,-439.6837572,0.00013598,2]
[332793656,1721529032036,-895.39063411,0.00013598,2]
[332793658,1721529032047,-2612.43363624,0.00013688,2]
[332793660,1721529032057,-802.10285336,0.00013698,2]
[332793662,1721529032067,-368.78036269,0.00013698,2]
[332793664,1721529032076,-500.0,0.00013698,2]
[332793665,1721529032085,-500.0,0.00013698,2]
[332793666,1721529032095,-802.10285336,0.00013698,2]
[332793667,1721529032104,-500.0,0.00013698,2]
[332793668,1721529032113,-802.10285336,0.00013698,2]
[332793670,1721529032124,-802.10285336,0.00013698,2]
[332793672,1721529032135,-802.10285336,0.00013698,2]
[332793674,1721529032145,-802.10285336,0.00013698,2]
[332793676,1721529032155,-802.10285336,0.00013698,2]
[332793678,1721529032164,-802.10285336,0.00013698,2]
[332793680,1721529032175,-500.0,0.00013698,2]
[332793682,1721529032185,-253.72782044,0.00013698,2]
[332793708,1721529032422,-500.0,0.00013698,2]
[332793711,1721529032433,-802.10285336,0.00013698,2]
[332793713,1721529032443,-633.22652101,0.00013698,2]
[332793715,1721529032452,-802.10285336,0.00013698,2]
[332793717,1721529032462,-802.10285336,0.00013698,2]
[332793719,1721529032471,-500.0,0.00013698,2]
[332793721,1721529032480,-802.10285336,0.00013698,2]
[332793723,1721529032491,-802.10285336,0.00013698,2]
[332793725,1721529032500,-500.0,0.00013698,2]
[332793727,1721529032509,-500.0,0.00013698,2]
[332793729,1721529032518,-802.10285336,0.00013698,2]
[332793731,1721529032528,-161.13991941,0.00013698,2]
[332793733,1721529032541,-599.78188424,0.00013698,2]
[332793785,1721529038164,-41.18104971,0.00013698,2]
[332793786,1721529038174,-802.10285336,0.00013698,2]
[332793787,1721529038183,-500.0,0.00013698,2]
[332793788,1721529038193,-802.10285336,0.00013698,2]
[332793789,1721529038202,-802.10285336,0.00013698,2]
[332793790,1721529038211,-500.0,0.00013698,2]
[332793791,1721529038220,-802.10285336,0.00013698,2]
[332793792,1721529038230,-500.0,0.00013698,2]
[332793793,1721529038239,-802.10285336,0.00013698,2]
[332793794,1721529038248,-500.0,0.00013698,2]
[332793795,1721529038258,-500.0,0.00013698,2]
[332793796,1721529038267,-802.10285336,0.00013698,2]
[332793797,1721529038277,-802.10285336,0.00013698,2]
[332793798,1721529038286,-802.10285336,0.00013698,2]
[332793799,1721529038295,-802.10285336,0.00013698,2]
[332793800,1721529038304,-216.9650229,0.00013698,2]
[332793802,1721529038314,-500.0,0.00013698,2]
[332793804,1721529038323,-230.03514664,0.00013698,2]
[332793806,1721529038333,-500.0,0.00013698,2]
[332793807,1721529038342,-882.31313868,0.00013698,2]
[332793808,1721529038352,-882.31313868,0.00013698,2]
[332793809,1721529038361,-500.0,0.00013698,2]
[332793810,1721529038371,-500.0,0.00013698,2]
[332793811,1721529038380,-882.31313868,0.00013698,2]
[332793812,1721529038389,-500.0,0.00013698,2]
[332793813,1721529038398,-882.31313868,0.00013698,2]
[332793814,1721529038407,-338.08011817,0.00013698,2]
[332793815,1721529038416,-882.31313868,0.00013698,2]
[332793816,1721529038425,-882.31313868,0.00013698,2]
[332793817,1721529038435,-500.0,0.00013698,2]
[332793818,1721529038444,-186.58567742,0.00013698,2]
[332793819,1721529038453,-500.0,0.00013698,2]
[332793820,1721529038463,-500.0,0.00013698,2]
[332793821,1721529038472,-825.43,0.00013698,2]
[332793822,1721529038482,-869.7,0.00013698,2]
[332793823,1721529038491,-500.0,0.00013698,2]
[332793824,1721529038501,-735.26,0.00013698,2]
[332793825,1721529038511,-500.0,0.00013698,2]
[332793826,1721529038520,-949.16,0.00013698,2]
[332793827,1721529038530,-710.29,0.00013698,2]
[332793828,1721529038539,-500.0,0.00013698,2]
[332793829,1721529038549,-500.0,0.00013698,2]
[332793830,1721529038558,-500.0,0.00013698,2]
[332793831,1721529038567,-500.0,0.00013698,2]
[332793832,1721529038576,-500.0,0.00013698,2]
[332793833,1721529038585,-500.0,0.00013698,2]
[332793834,1721529038595,-623.03,0.00013698,2]
[332793835,1721529038604,-500.0,0.00013698,2]
[332793836,1721529038613,-500.0,0.00013698,2]
[332793837,1721529038623,-360.07193622,0.00013698,2]
[332793838,1721529038632,-555.93805008,0.00013698,2]
[332793839,1721529038641,-547.64,0.00013698,2]
[332793840,1721529038650,-500.0,0.00013698,2]
[332793841,1721529038659,-500.0,0.00013698,2]
[332793842,1721529038669,-502.86855471,0.00013698,2]
[332793843,1721529038679,-500.0,0.00013698,2]
[332793844,1721529038688,-500.0,0.00013698,2]
[332793845,1721529038697,-500.0,0.00013698,2]
[332793846,1721529038706,-501.89,0.00013698,2]
[332793847,1721529038715,-914.01,0.00013698,2]
[332793848,1721529038725,-500.0,0.00013698,2]
[332793849,1721529038734,-500.0,0.00013698,2]
[332793850,1721529038743,-500.0,0.00013698,2]
[332793851,1721529038753,-500.0,0.00013698,2]
[332793852,1721529038762,-1113.77,0.00013698,2]
[332793853,1721529038771,-479.02754092,0.00013698,2]
[332793854,1721529038781,-500.0,0.00013698,2]
[332793855,1721529038790,-500.0,0.00013698,2]
[332793856,1721529038800,-500.0,0.00013698,2]
[332793857,1721529038809,-500.0,0.00013698,2]